fUSD/lending_fUSD_20250426
["ID","MTS","AMOUNT","RATE_DAILY","PERIOD"]
[359077876,1745697046439,-806.14,0.00019864,2]
[359077877,1745697046450,-400.0,0.00019864,2]
[359077878,1745697046462,-695.16,0.00019864,2]
[359077879,1745697046473,-9692.89,0.00019864,2]
[359077880,1745697046483,-400.0,0.00019864,2]
[359077881,1745697046498,-653.43,0.00019864,2]
[359077882,1745697046508,-5136.99,0.00019864,2]
[359077883,1745697046519,-1138.0,0.00019865,2]
[359077884,1745697046531,-400.0,0.00019865,2]
[359077885,1745697046542,-400.0,0.00019865,2]
[359077886,1745697046554,-400.0,0.00019865,2]
[359077887,1745697046564,-400.0,0.00019865,2]
[359077888,1745697046575,-400.0,0.00019865,2]
[359077889,1745697046587,-400.0,0.00019865,2]
[359077890,1745697046598,-495.44,0.00019865,2]
[359077891,1745697046608,-400.0,0.00019865,2]
[359077892,1745697046619,-605.16,0.00019865,2]
[359077893,1745697046629,-400.0,0.00019865,2]
[359077894,1745697046639,-370.25327974,0.00019865,2]
[359077895,1745697046650,-400.0,0.00019865,2]
[359077896,1745697046660,-400.0,0.00019865,2]
[359077897,1745697046670,-400.0,0.00019865,2]
[359077898,1745697046680,-400.0,0.00019865,2]
[359077899,1745697046690,-400.0,0.00019865,2]
[359077900,1745697046701,-510.36680654,0.00019865,2]
[359077901,1745697046711,-400.0,0.00019865,2]
[359077902,1745697046721,-400.0,0.00019865,2]
[359077903,1745697046732,-571.22,0.00019865,2]
[359077904,1745697046742,-574.61,0.00019865,2]
[359077905,1745697046752,-400.0,0.00019865,2]
[359077906,1745697046762,-400.0,0.00019865,2]
[359077907,1745697046772,-400.0,0.00019865,2]
[359077908,1745697046781,-400.0,0.00019865,2]
[359077909,1745697046791,-400.0,0.00019865,2]
[359077910,1745697046815,-400.0,0.00019865,2]
[359077911,1745697046826,-521.41,0.00019865,2]
[359077912,1745697046837,-400.0,0.00019865,2]
[359077913,1745697046848,-400.0,0.00019865,2]
[359077914,1745697046859,-472.19,0.00019865,2]
[359077915,1745697046870,-736.3,0.00019865,2]
[359077916,1745697046881,-400.0,0.00019865,2]
[359077917,1745697046891,-400.0,0.00019865,2]
[359077918,1745697046904,-400.0,0.00019865,2]
[359077919,1745697046915,-330.09051039,0.00019865,2]
[359077920,1745697046926,-484.76,0.00019865,2]
[359077921,1745697046937,-489.98772299,0.00019865,2]
[359077922,1745697046948,-400.0,0.00019865,2]
[359077923,1745697046959,-673.26,0.00019865,2]
[359077924,1745697046970,-400.0,0.00019865,2]
[359077925,1745697046984,-400.0,0.00019865,2]
[359077926,1745697046994,-400.0,0.00019865,2]
[359077927,1745697047005,-300.0,0.00019865,2]
[359077928,1745697047016,-716.97,0.00019865,2]
[359077929,1745697047027,-400.0,0.00019865,2]
[359077930,1745697047038,-400.0,0.00019865,2]
[359077931,1745697047048,-400.0,0.00019865,2]
[359077932,1745697047059,-400.0,0.00019865,2]
[359077933,1745697047070,-400.0,0.00019865,2]
[359077934,1745697047081,-555.6,0.00019865,2]
[359077935,1745697047092,-400.0,0.00019865,2]
[359077936,1745697047102,-400.0,0.00019865,2]
[359077937,1745697047113,-400.0,0.00019865,2]
[359077938,1745697047124,-401.16,0.00019865,2]
[359077939,1745697047134,-458.23,0.00019865,2]
[359077940,1745697047145,-529.57,0.00019865,2]
[359077941,1745697047155,-400.0,0.00019865,2]
[359077942,1745697047166,-596.9,0.00019865,2]
[359077943,1745697047177,-400.0,0.00019865,2]
[359077944,1745697047187,-400.0,0.00019865,2]
[359077945,1745697047198,-1091.07,0.00019865,2]
[359077946,1745697047209,-400.0,0.00019865,2]
[359077947,1745697047219,-400.0,0.00019865,2]
[359077948,1745697047230,-1158.45,0.00019865,2]
[359077949,1745697047246,-400.0,0.00019865,2]
[359077950,1745697047257,-400.0,0.00019865,2]
[359077951,1745697047267,-459.49,0.00019865,2]
[359077952,1745697047278,-400.0,0.00019865,2]
[359077953,1745697047288,-599.9,0.00019865,2]
[359077954,1745697047298,-407.49103675,0.00019865,2]
[359077955,1745697047309,-400.0,0.00019865,2]
[359077956,1745697047320,-400.0,0.00019865,2]
[359077957,1745697047330,-400.0,0.00019865,2]
[359077958,1745697047340,-500.0,0.00019865,2]
[359077959,1745697047350,-500.0,0.00019865,2]
[359077960,1745697047360,-484.87,0.00019865,2]
[359077961,1745697047371,-400.0,0.00019865,2]
[359077962,1745697047382,-404.79,0.00019865,2]
[359077963,1745697047392,-400.0,0.00019865,2]
[359077964,1745697047403,-400.0,0.00019865,2]
[359077965,1745697047413,-400.0,0.00019865,2]
[359077966,1745697047424,-429.07,0.00019865,2]
[359077967,1745697047435,-601.53,0.00019865,2]
[359077968,1745697047445,-810.66,0.00019865,2]
[359077969,1745697047455,-400.0,0.00019865,2]
[359077970,1745697047465,-407.16,0.00019865,2]
[359077971,1745697047476,-400.0,0.00019865,2]
[359077972,1745697047487,-400.0,0.00019865,2]
[359077973,1745697047501,-758.79,0.00019865,2]
[359077974,1745697047514,-546.2,0.00019865,2]
[359077975,1745697047524,-822.44,0.00019865,2]
[359077976,1745697047535,-400.0,0.00019865,2]
[359077977,1745697047546,-786.34,0.00019865,2]
[359077978,1745697047556,-400.0,0.00019865,2]
[359077979,1745697047567,-477.93,0.00019865,2]
[359077980,1745697047577,-400.0,0.00019865,2]
[359077981,1745697047587,-400.0,0.00019865,2]
[359077982,1745697047599,-896.48,0.00019865,2]
[359077983,1745697047611,-400.0,0.00019865,2]
[359077984,1745697047623,-400.0,0.00019865,2]
[359077985,1745697047634,-400.0,0.00019865,2]
[359077986,1745697047645,-416.71,0.00019865,2]
[359077987,1745697047655,-400.0,0.00019865,2]
[359077988,1745697047670,-400.0,0.00019865,2]
[359077989,1745697047681,-569.87,0.00019865,2]
[359077990,1745697047692,-883.66,0.00019865,2]
[359077991,1745697047703,-400.0,0.00019865,2]
[359077992,1745697047713,-400.0,0.00019865,2]
[359077993,1745697047723,-600.69,0.00019865,2]
[359077994,1745697047735,-1548.15,0.00019865,2]
[359077995,1745697047746,-525.7,0.00019865,2]
[359077996,1745697047758,-400.0,0.00019865,2]
[359077997,1745697047769,-899.01,0.00019865,2]
[359077998,1745697047780,-400.0,0.00019865,2]
[359077999,1745697047792,-400.0,0.00019865,2]
[359078000,1745697047803,-448.83,0.00019865,2]
[359078001,1745697047815,-400.0,0.00019865,2]
[359078002,1745697047826,-400.0,0.00019865,2]
[359078003,1745697047839,-700.82,0.00019865,2]
[359078004,1745697047850,-400.0,0.00019865,2]
[359078005,1745697047861,-660.64,0.00019865,2]
[359078006,1745697047871,-757.94,0.00019865,2]
[359078007,1745697047882,-400.0,0.00019865,2]
[359078008,1745697047891,-659.25,0.00019865,2]
[359078009,1745697047901,-400.0,0.00019865,2]
[359078010,1745697048079,-1712.88,0.00019865,2]
[359078011,1745697048091,-400.0,0.00019865,2]
[359078012,1745697048101,-400.0,0.00019865,2]
[359078013,1745697048111,-1602.94,0.00019865,2]
[359078014,1745697048122,-666.03,0.00019865,2]
[359078015,1745697048132,-400.0,0.00019865,2]
[359078016,1745697048143,-410.26,0.00019865,2]
[359078017,1745697048153,-400.0,0.00019865,2]
[359078018,1745697048163,-606.65,0.00019865,2]
[359078019,1745697048174,-400.0,0.00019865,2]
[359078020,1745697048183,-400.0,0.00019865,2]
[359078021,1745697048194,-400.0,0.00019865,2]
[359078022,1745697048203,-400.0,0.00019865,2]
[359078023,1745697048213,-400.0,0.00019865,2]
[359078024,1745697048224,-866.4,0.00019865,2]
[359078025,1745697048234,-400.0,0.00019865,2]
[359078026,1745697048243,-400.0,0.00019865,2]
[359078027,1745697048260,-400.0,0.00019865,2]
[359078028,1745697048270,-400.0,0.00019865,2]
[359078029,1745697048279,-460.74,0.00019865,2]
[359078030,1745697048290,-578.52,0.00019865,2]
[359078031,1745697048300,-400.0,0.00019865,2]
[359078032,1745697048310,-400.0,0.00019865,2]
[359078033,1745697048320,-627.87,0.00019865,2]
[359078034,1745697048330,-539.46,0.00019865,2]
[359078035,1745697048340,-400.0,0.00019865,2]
[359078036,1745697048349,-400.0,0.00019865,2]
[359078037,1745697048359,-400.0,0.00019865,2]
[359078038,1745697048368,-400.0,0.00019865,2]
[359078039,1745697048378,-400.0,0.00019865,2]
[359078040,1745697048389,-471.13,0.00019865,2]
[359078041,1745697048399,-632.06,0.00019865,2]
[359078042,1745697048409,-400.0,0.00019865,2]
[359078043,1745697048418,-400.0,0.00019865,2]
[359078044,1745697048428,-400.0,0.00019865,2]
[359078045,1745697048437,-643.63,0.00019865,2]
[359078046,1745697048447,-404.58,0.00019865,2]
[359078047,1745697048457,-3372.3,0.00019865,2]
[359078048,1745697048466,-617.27,0.00019865,2]
[359078049,1745697048476,-459.48,0.00019865,2]
[359078050,1745697048487,-400.0,0.00019865,2]
[359078051,1745697048499,-633.72,0.00019865,2]
[359078052,1745697048509,-400.0,0.00019865,2]
[359078053,1745697048518,-400.0,0.00019865,2]
[359078054,1745697048529,-652.48,0.00019865,2]
[359078055,1745697048538,-503.09,0.00019865,2]
[359078056,1745697048548,-672.34,0.00019865,2]
[359078057,1745697048557,-716.38,0.00019865,2]
[359078058,1745697048568,-400.0,0.00019865,2]
[359078059,1745697048578,-400.0,0.00019865,2]
[359078060,1745697048589,-436.45,0.00019865,2]
[359078061,1745697048607,-400.0,0.00019865,2]
[359078062,1745697048622,-400.0,0.00019865,2]
[359078063,1745697048632,-400.0,0.00019865,2]
[359078064,1745697048642,-400.0,0.00019865,2]
[359078065,1745697048652,-536.14,0.00019865,2]
[359078066,1745697048662,-400.0,0.00019865,2]
[359078067,1745697048672,-400.0,0.00019865,2]
[359078068,1745697048682,-400.0,0.00019865,2]
[359078069,1745697048692,-400.0,0.00019865,2]
[359078070,1745697048702,-429.76,0.00019865,2]
[359078071,1745697048712,-400.0,0.00019865,2]
[359078072,1745697048722,-400.0,0.00019865,2]
[359078073,1745697048731,-695.88,0.00019865,2]
[359078074,1745697048742,-400.0,0.00019865,2]
[359078075,1745697048751,-400.0,0.00019865,2]
[359078076,1745697048761,-400.0,0.00019865,2]
[359078077,1745697048771,-152.451891,0.00019865,2]
[359078078,1745697048780,-589.82,0.00019865,2]
[359078079,1745697048790,-400.0,0.00019865,2]
[359078080,1745697048801,-400.0,0.00019865,2]
[359078081,1745697048810,-400.0,0.00019865,2]
[359078082,1745697048820,-400.0,0.00019865,2]
[359078083,1745697048830,-400.0,0.00019865,2]
[359078084,1745697048839,-400.0,0.00019865,2]
[359078085,1745697048850,-400.0,0.00019865,2]
[359078086,1745697048860,-1811.68,0.00019865,2]
[359078087,1745697048870,-400.0,0.00019865,2]
[359078088,1745697048880,-608.01,0.00019865,2]
[359078089,1745697048889,-400.0,0.00019865,2]
[359078090,1745697048899,-691.61,0.00019865,2]
[359078091,1745697048909,-400.0,0.00019865,2]
[359078092,1745697048918,-400.0,0.00019865,2]
[359078093,1745697048928,-799.6,0.00019865,2]
[359078094,1745697048937,-634.53,0.00019865,2]
[359078095,1745697048947,-400.0,0.00019865,2]
[359078096,1745697048957,-467.83356738,0.00019865,2]
[359078097,1745697048966,-474.69,0.00019865,2]
[359078098,1745697048976,-400.0,0.00019865,2]
[359078099,1745697048986,-406.23,0.00019865,2]
[359078100,1745697048995,-342.50493672,0.00019865,2]
[359078101,1745697049005,-400.0,0.00019865,2]
[359078102,1745697049015,-400.0,0.00019865,2]
[359078103,1745697049025,-400.0,0.00019865,2]
[359078104,1745697049040,-400.0,0.00019865,2]
[359078105,1745697049051,-400.0,0.00019865,2]
[359078106,1745697049061,-400.0,0.00019865,2]
[359078107,1745697049072,-400.0,0.00019865,2]
[359078108,1745697049081,-400.0,0.00019865,2]
[359078109,1745697049092,-450.95,0.00019865,2]
[359078110,1745697049102,-510.41482974,0.00019865,2]
[359078111,1745697049111,-400.0,0.00019865,2]
[359078112,1745697049122,-423.48,0.00019865,2]
[359078113,1745697049132,-400.0,0.00019865,2]
[359078114,1745697049142,-489.66,0.00019865,2]
[359078115,1745697049153,-550.66,0.00019865,2]
[359078116,1745697049163,-662.8,0.00019865,2]
[359078117,1745697049173,-400.0,0.00019865,2]
[359078118,1745697049183,-400.0,0.00019865,2]
[359078119,1745697049194,-400.0,0.00019865,2]
[359078120,1745697049204,-715.48,0.00019865,2]
[359078121,1745697049215,-400.0,0.00019865,2]
[359078122,1745697049225,-400.0,0.00019865,2]
[359078123,1745697049235,-400.0,0.00019865,2]
[359078124,1745697049246,-290.13084305,0.00019865,2]
[359078125,1745697049916,-127.62915695,0.00019865,2]
[359078126,1745697049927,-2119.68,0.00019865,2]
[359078127,1745697049938,-400.0,0.00019865,2]
[359078128,1745697049948,-400.0,0.00019865,2]
[359078129,1745697049957,-400.0,0.00019865,2]
[359078130,1745697049967,-400.0,0.00019865,2]
[359078131,1745697049977,-433.91,0.00019865,2]
[359078132,1745697049986,-400.0,0.00019865,2]
[359078133,1745697049996,-309.60087644,0.00019865,2]
[359078134,1745697050580,-400.0,0.00019589,2]
[359078135,1745697050590,-400.0,0.00019863,2]
[359078136,1745697050602,-90.39912356,0.00019865,2]
[359078137,1745697050612,-400.0,0.00019865,2]
[359078138,1745697050622,-400.0,0.00019865,2]
[359078139,1745697050632,-400.0,0.00019865,2]
[359078140,1745697050642,-758.73,0.00019865,2]
[359078141,1745697050653,-400.0,0.00019865,2]
[359078142,1745697050662,-160.65662282,0.00019865,2]
[359078143,1745697050672,-400.0,0.00019865,2]
[359078144,1745697050682,-538.86,0.00019865,2]
[359078145,1745697050693,-400.0,0.00019865,2]
[359078146,1745697050704,-400.0,0.00019865,2]
[359078147,1745697050714,-872.59,0.00019865,2]
[359078148,1745697050724,-400.0,0.00019865,2]
[359078149,1745697050734,-400.0,0.00019865,2]
[359078150,1745697050745,-839.99,0.00019865,2]
[359078151,1745697050756,-400.0,0.00019865,2]
[359078152,1745697050767,-400.0,0.00019865,2]
[359078153,1745697050776,-945.94,0.00019865,2]
[359078154,1745697050786,-371.61684455,0.00019865,2]
[359078155,1745697050795,-400.0,0.00019865,2]
[359078156,1745697050805,-400.0,0.00019865,2]
[359078157,1745697050814,-400.81,0.00019865,2]
[359078158,1745697050823,-400.0,0.00019865,2]
[359078159,1745697050833,-741.77,0.00019865,2]
[359078160,1745697050843,-400.0,0.00019865,2]
[359078161,1745697050852,-718.92,0.00019865,2]
[359078162,1745697050863,-400.0,0.00019865,2]
[359078163,1745697050873,-711.36,0.00019865,2]
[359078164,1745697050882,-400.0,0.00019865,2]
[359078165,1745697050892,-400.0,0.00019865,2]
[359078166,1745697050902,-400.0,0.00019865,2]
[359078167,1745697050912,-400.0,0.00019865,2]
[359078168,1745697050923,-400.0,0.00019865,2]
[359078169,1745697050934,-400.0,0.00019865,2]
[359078170,1745697050944,-400.0,0.00019865,2]
[359078171,1745697050954,-469.7,0.00019865,2]
[359078172,1745697050965,-400.0,0.00019865,2]
[359078173,1745697050975,-428.92,0.00019865,2]
[359078174,1745697050985,-400.0,0.00019865,2]
[359078175,1745697050996,-666.86,0.00019865,2]
[359078176,1745697051006,-416.13,0.00019865,2]
[359078177,1745697051016,-400.0,0.00019865,2]
[359078178,1745697051027,-672.0,0.00019865,2]
[359078179,1745697051038,-400.0,0.00019865,2]
[359078180,1745697051048,-564.75,0.00019865,2]
[359078181,1745697051059,-400.0,0.00019865,2]
[359078182,1745697051069,-813.4,0.00019865,2]
[359078183,1745697051080,-69.66645457,0.00019865,2]
[359078184,1745697051727,-400.0,0.00019589,2]
[359078185,1745697051738,-400.0,0.00019589,2]
[359078186,1745697051749,-476.07,0.00019589,2]
[359078187,1745697051759,-400.0,0.00019589,2]
[359078188,1745697051770,-400.0,0.00019863,2]
[359078189,1745697051781,-330.33354543,0.00019865,2]
[359078190,1745697051791,-400.0,0.00019865,2]
[359078191,1745697051802,-623.5,0.00019865,2]
[359078192,1745697051812,-529.82,0.00019865,2]
[359078193,1745697051822,-453.19113899,0.00019865,2]
[359078194,1745697051832,-807.47,0.00019865,2]
[359078195,1745697051842,-400.0,0.00019865,2]
[359078196,1745697051852,-400.0,0.00019865,2]
[359078197,1745697051863,-500.0,0.00019873,2]
[359078198,1745697051873,-500.0,0.00019873,2]
[359078199,1745697051883,-500.0,0.00019873,2]
[359078200,1745697051893,-500.0,0.00019873,2]
[359078201,1745697051904,-500.0,0.00019873,2]
[359078202,1745697051914,-500.0,0.00019873,2]
[359078203,1745697051924,-500.0,0.00019873,2]
[359078204,1745697051934,-500.0,0.00019873,2]
[359078205,1745697051946,-500.0,0.00019873,2]
[359078206,1745697051957,-500.0,0.00019873,2]
[359078207,1745697051967,-530.59586584,0.00019873,2]
[359078208,1745697051979,-500.0,0.00019873,2]
[359078209,1745697051989,-387.7961174,0.00019873,2]
[359078210,1745697052000,-1138.0,0.00019892,2]
[359078211,1745697052011,-3131.54888948,0.00019893,2]
[359078212,1745697052029,-405.96511052,0.00019893,2]
[359078213,1745697052039,-174.738,0.00019893,2]
[359078214,1745697052050,-168.26252116,0.000199,2]
[359078215,1745697052060,-175.21320296,0.000199,2]
[359078216,1745697052071,-1433.55479191,0.000199,2]
[359078217,1745697162844,2764.75,0.00018907,2]
[359078218,1745697171251,625.31,0.00018896,2]
[359078219,1745697188357,278.112116,7.945e-05,2]
[359078220,1745697191330,167.451808,8.3e-07,2]
[359078221,1745697242912,1078.38,0.00018829,2]
[359078222,1745697254184,-2672.64324374,0.0001949,2]
[359078223,1745697254210,-200.0,0.00019512,2]
[359078224,1745697254235,-250.0,0.00019512,2]
[359078225,1745697254265,-200.0,0.00019535,2]
[359078226,1745697254289,-2672.64324367,0.00019536,2]
[359078227,1745697254313,-500.0,0.00019573,2]
[359078228,1745697254338,-2672.64324367,0.00019581,2]
[359078229,1745697254363,-300.0,0.00019587,2]
[359078230,1745697254389,-500.0,0.00019588,2]
[359078231,1745697254414,-500.0,0.00019588,2]
[359078232,1745697254440,-500.0,0.00019588,2]
[359078233,1745697254467,-150.77870296,0.00019588,2]
[359078234,1745697254492,-400.0,0.00019589,2]
[359078235,1745697254516,-400.0,0.00019589,2]
[359078236,1745697254539,-639.94,0.00019589,2]
[359078237,1745697254563,-734.57,0.00019589,2]
[359078238,1745697254587,-400.0,0.00019589,2]
[359078239,1745697254611,-98164.1,0.00019589,2]
[359078240,1745697254636,-400.0,0.00019589,2]
[359078241,1745697254662,-2314.19,0.00019589,2]
[359078242,1745697254687,-498.98,0.00019589,2]
[359078243,1745697254711,-400.0,0.00019589,2]
[359078244,1745697254733,-400.0,0.00019589,2]
[359078245,1745697254757,-400.0,0.00019589,2]
[359078246,1745697254782,-400.0,0.00019589,2]
[359078247,1745697254806,-421.38,0.00019589,2]
[359078248,1745697254830,-1169.32,0.00019589,2]
[359078249,1745697254853,-400.0,0.00019589,2]
[359078250,1745697254877,-400.0,0.00019589,2]
[359078251,1745697254900,-400.0,0.00019589,2]
[359078252,1745697254923,-400.0,0.00019589,2]
[359078253,1745697254947,-170.27472596,0.00019589,2]
[359078254,1745697255048,-427.44,0.00019589,2]
[359078255,1745697255072,-444.48,0.00019589,2]
[359078256,1745697255098,-400.0,0.00019589,2]
[359078257,1745697255124,-400.0,0.00019589,2]
[359078258,1745697255149,-400.0,0.00019589,2]
[359078259,1745697255174,-611.01,0.00019589,2]
[359078260,1745697255199,-400.0,0.00019589,2]
[359078261,1745697255224,-400.0,0.00019589,2]
[359078262,1745697255249,-400.0,0.00019589,2]
[359078263,1745697255272,-400.0,0.00019589,2]
[359078264,1745697255298,-400.0,0.00019589,2]
[359078265,1745697255324,-501.65,0.00019589,2]
[359078266,1745697255349,-400.0,0.00019589,2]
[359078267,1745697255373,-180.32340978,0.00019589,2]
[359078268,1745697255396,-400.0,0.00019589,2]
[359078269,1745697255424,-583.5,0.00019589,2]
[359078270,1745697255449,-400.0,0.00019589,2]
[359078271,1745697255474,-400.0,0.00019589,2]
[359078272,1745697255497,-613.98,0.00019589,2]
[359078273,1745697255521,-400.0,0.00019589,2]
[359078274,1745697255548,-400.0,0.00019589,2]
[359078275,1745697255572,-400.0,0.00019589,2]
[359078276,1745697255595,-314.56064458,0.00019589,2]
[359078277,1745697255619,-840.45,0.00019589,2]
[359078278,1745697255644,-400.0,0.00019589,2]
[359078279,1745697255666,-400.0,0.00019589,2]
[359078280,1745697255688,-400.0,0.00019589,2]
[359078281,1745697255712,-504.41,0.00019589,2]
[359078282,1745697255734,-426.7,0.00019589,2]
[359078283,1745697255756,-429.48,0.00019589,2]
[359078284,1745697255778,-400.0,0.00019589,2]
[359078285,1745697255802,-587.38,0.00019589,2]
[359078286,1745697255825,-300.0,0.00019589,2]
[359078287,1745697255847,-464.94,0.00019589,2]
[359078288,1745697255870,-400.0,0.00019589,2]
[359078289,1745697255893,-400.0,0.00019589,2]
[359078290,1745697255917,-571.06,0.00019589,2]
[359078291,1745697255941,-664.19,0.00019589,2]
[359078292,1745697255964,-400.0,0.00019589,2]
[359078293,1745697255987,-400.0,0.00019589,2]
[359078294,1745697256011,-400.0,0.00019589,2]
[359078295,1745697256034,-945.61,0.00019589,2]
[359078296,1745697256057,-555.09,0.00019589,2]
[359078297,1745697256080,-400.0,0.00019589,2]
[359078298,1745697256103,-400.0,0.00019589,2]
[359078299,1745697256128,-400.0,0.00019589,2]
[359078300,1745697256151,-400.0,0.00019589,2]
[359078301,1745697256176,-424.9,0.00019589,2]
[359078302,1745697256201,-2787.31,0.00019589,2]
[359078303,1745697256225,-547.53,0.00019589,2]
[359078304,1745697256249,-552.85,0.00019589,2]
[359078305,1745697256273,-550.75,0.00019589,2]
[359078306,1745697256300,-460.95,0.00019589,2]
[359078307,1745697256326,-530.39,0.00019589,2]
[359078308,1745697256351,-400.0,0.00019589,2]
[359078309,1745697256374,-400.0,0.00019589,2]
[359078310,1745697256397,-400.0,0.00019589,2]
[359078311,1745697256421,-400.0,0.00019589,2]
[359078312,1745697256446,-1335.43,0.00019589,2]
[359078313,1745697256471,-400.0,0.00019589,2]
[359078314,1745697256497,-400.0,0.00019589,2]
[359078315,1745697256522,-1038.77,0.00019589,2]
[359078316,1745697256546,-403.94,0.00019589,2]
[359078317,1745697256571,-400.0,0.00019589,2]
[359078318,1745697256594,-400.0,0.00019589,2]
[359078319,1745697256620,-860.56,0.00019589,2]
[359078320,1745697256646,-400.0,0.00019589,2]
[359078321,1745697256670,-400.0,0.00019589,2]
[359078322,1745697256695,-549.63,0.00019589,2]
[359078323,1745697256719,-400.0,0.00019589,2]
[359078324,1745697256745,-400.0,0.00019589,2]
[359078325,1745697256770,-400.0,0.00019589,2]
[359078326,1745697256793,-594.89,0.00019589,2]
[359078327,1745697256816,-231.12927936,0.00019589,2]
[359078328,1745697256845,-385.56221665,0.00019589,2]
[359078329,1745697256868,-400.0,0.00019589,2]
[359078330,1745697256893,-400.0,0.00019589,2]
[359078331,1745697256916,-400.0,0.00019589,2]
[359078332,1745697256940,-400.0,0.00019589,2]
[359078333,1745697256963,-400.0,0.00019589,2]
[359078334,1745697256986,-400.0,0.00019589,2]
[359078335,1745697257009,-400.0,0.00019589,2]
[359078336,1745697257033,-763.24,0.00019589,2]
[359078337,1745697257059,-1013.43,0.00019589,2]
[359078338,1745697257082,-400.0,0.00019589,2]
[359078339,1745697257106,-400.0,0.00019589,2]
[359078340,1745697257129,-400.0,0.00019589,2]
[359078341,1745697257152,-400.0,0.00019589,2]
[359078342,1745697257175,-502.74,0.00019589,2]
[359078343,1745697257199,-448.66,0.00019589,2]
[359078344,1745697257223,-400.0,0.00019589,2]
[359078345,1745697257247,-400.0,0.00019589,2]
[359078346,1745697257270,-400.0,0.00019589,2]
[359078347,1745697257292,-400.0,0.00019589,2]
[359078348,1745697257317,-1025.1,0.00019589,2]
[359078349,1745697257342,-400.0,0.00019589,2]
[359078350,1745697257365,-946.09,0.00019589,2]
[359078351,1745697257389,-400.0,0.00019589,2]
[359078352,1745697257414,-481.38,0.00019589,2]
[359078353,1745697257438,-528.37,0.00019589,2]
[359078354,1745697257464,-606.74,0.00019589,2]
[359078355,1745697257488,-2754.93,0.00019589,2]
[359078356,1745697257512,-400.0,0.00019589,2]
[359078357,1745697257539,-710.04,0.00019589,2]
[359078358,1745697257563,-418.98,0.00019589,2]
[359078359,1745697257586,-400.0,0.00019589,2]
[359078360,1745697257611,-415.15,0.00019589,2]
[359078361,1745697257639,-781.54,0.00019589,2]
[359078362,1745697257666,-1032.31,0.00019589,2]
[359078363,1745697257691,-159.23829172,0.00019589,2]
[359078364,1745697257715,-455.29,0.00019589,2]
[359078365,1745697257740,-400.0,0.00019589,2]
[359078366,1745697257762,-477.91,0.00019589,2]
[359078367,1745697257785,-400.0,0.00019589,2]
[359078368,1745697257811,-1025.9,0.00019589,2]
[359078369,1745697257838,-501.53,0.00019589,2]
[359078370,1745697257862,-400.0,0.00019589,2]
[359078371,1745697257885,-400.0,0.00019589,2]
[359078372,1745697257909,-400.0,0.00019589,2]
[359078373,1745697257933,-492.0,0.00019589,2]
[359078374,1745697258152,-400.0,0.00019589,2]
[359078375,1745697258196,-461.03,0.00019589,2]